bitfinex/quotes_SOLUSD_20250731
["timestamp","ask_amount","ask_price","bid_price","bid_amount"]
[1753986730048,9.80703149,177.18,177.16,0.76]
[1753986730252,9.80703149,177.17,177.16,0.06]
[1753986730631,15.45132792,177.17,177.16,0.06]
[1753986730833,16.15132792,177.17,177.16,0.06]
[1753986731031,16.85686497,177.17,177.16,0.06]
[1753986731555,16.15132792,177.17,177.16,0.06]
[1753986733346,16.85686497,177.17,177.16,0.06]
[1753986733749,21.16057457,177.17,177.07,67.16]
[1753986734064,9.80703149,177.11,177.07,67.16]
[1753986734276,9.80703149,177.11,177.08,0.7]
[1753986734561,9.80703149,177.11,177.09,0.7]
[1753986735062,9.80703149,177.1,177.09,0.7]
[1753986736868,5.64652738,177.1,177.09,0.7]
[1753986737042,15.45355887,177.1,177.09,0.7]
[1753986738138,16.15355887,177.1,177.06,0.06]
[1753986738341,9.80703149,177.07,177.06,0.06]
[1753986738743,6.34652738,177.1,177.06,0.06]
[1753986738951,9.80703149,177.07,177.06,0.06]
[1753986739639,16.15451553,177.07,177.06,0.06]
[1753986740971,9.80703149,177.07,177.06,0.06]
[1753986741143,15.45451553,177.07,177.06,0.06]
[1753986742252,9.80703149,177.07,177.06,0.06]
[1753986742564,9.80703149,177.07,177.06,0.76]
[1753986742997,0.7,177.11,177.06,0.76]
[1753986743179,9.80703149,177.08,177.06,0.76]
[1753986744175,9.80703149,177.07,177.06,0.76]
[1753986744345,9.80703149,177.07,177.06,0.06]
[1753986744977,16.15451553,177.07,177.06,0.06]
[1753986745472,15.45451553,177.07,177.06,0.06]
[1753986746479,9.80703149,177.07,177.06,0.06]
[1753986747271,16.15451553,177.07,177.06,0.06]
[1753986747649,18.41676753,177.07,177.06,0.06]
[1753986747853,58.85676753,177.07,177.06,0.06]
[1753986748754,55.08720806,177.07,177.06,0.06]
[1753986749387,52.82495606,177.07,177.06,0.06]
[1753986749677,14.64733506,177.07,177.06,0.06]
[1753986749859,55.08733506,177.07,177.06,0.06]
[1753986750764,58.88838077,177.07,177.06,0.06]
[1753986751751,18.44838077,177.07,177.06,0.06]
[1753986751969,26.70585577,177.09,177.06,0.76]
[1753986751970,5.64725704,177.08,177.06,0.76]
[1753986752278,15.4854553,177.09,177.06,0.76]
[1753986752484,16.19095942,177.1,177.07,0.7]
[1753986752788,10.5442938,177.11,177.08,0.7]
[1753986753149,9.83851773,177.1,177.08,0.7]
[1753986753574,0.70573622,177.12,177.09,10.53851773]
[1753986753884,16.18891625,177.16,177.11,9.83851773]
[1753986754092,9.83851773,177.14,177.1,10.53851773]
[1753986754396,9.83851773,177.14,177.1,0.7]
[1753986754683,9.83851773,177.14,177.1,9.83851773]
[1753986754885,11.21413443,177.15,177.11,0.68]
[1753986755380,9.83851773,177.12,177.08,0.68]
[1753986755556,9.83851773,177.09,177.06,0.06]
[1753986755760,9.83851773,177.07,177.06,0.06]
[1753986758584,9.83851773,177.08,177.06,0.06]
[1753986758959,10.50851773,177.07,177.06,0.06]
[1753986759676,9.83851773,177.07,177.06,0.06]
[1753986760056,15.48600177,177.07,177.06,0.06]
[1753986760262,16.15600177,177.07,177.06,0.06]
[1753986760965,9.83851773,177.08,177.06,0.06]
[1753986761386,0.70581592,177.1,177.06,9.89851773]
[1753986761683,15.48337333,177.16,177.1,5.64652738]
[1753986761996,9.83851773,177.15,177.1,9.83851773]
[1753986762153,9.83851773,177.15,177.1,10.51851773]
[1753986762352,15.51337333,177.16,177.11,9.83851773]
[1753986762581,16.18337333,177.16,177.11,10.51851773]
[1753986763163,16.18337333,177.16,177.12,0.68]
[1753986764299,16.18337333,177.16,177.11,9.83851773]
[1753986764478,16.18337333,177.16,177.11,10.51851773]
[1753986765155,16.18337333,177.16,177.12,0.68]
[1753986765455,0.67,177.15,177.1,26.68]
[1753986765763,0.67,177.15,177.11,10.51851773]
[1753986765965,15.51337333,177.16,177.11,10.51851773]
[1753986766160,16.2189502,177.16,177.12,0.68]
[1753986766377,0.03,177.16,177.13,10.51851773]
[1753986766675,0.03,177.16,177.12,9.83851773]
[1753986767173,0.03,177.16,177.11,5.64605734]
[1753986767378,0.03,177.16,177.12,10.51851773]
[1753986767883,0.03,177.16,177.13,16.16406019]
[1753986768081,0.03,177.16,177.13,6.32554246]
[1753986768262,0.03,177.16,177.15,9.83851773]
[1753986768781,0.03,177.16,177.15,0.68]
[1753986768970,0.03,177.16,177.15,10.51851773]
[1753986769302,0.03,177.16,177.15,0.68]
[1753986770070,0.03,177.16,177.11,5.93184924]
[1753986770267,0.03,177.16,177.12,36.51851773]
[1753986770467,0.03,177.16,177.12,76.91851773]
[1753986770683,9.83851773,177.14,177.09,0.96586333]
[1753986770892,9.83851773,177.12,177.08,55.5]
[1753986771067,0.03,177.16,177.07,0.68]
[1753986771068,9.83851773,177.1,177.07,0.68]
[1753986771274,9.83851773,177.11,177.07,0.68]
[1753986771698,9.83851773,177.1,177.07,0.68]
[1753986772075,9.83851773,177.08,177.06,0.06]
[1753986772295,9.83851773,177.07,177.06,0.06]
[1753986772477,0.67,177.07,177.06,0.06]
[1753986772684,10.50851773,177.07,177.06,0.06]
[1753986774101,16.15600177,177.07,177.06,0.06]
[1753986776906,16.86193727,177.07,177.06,0.06]
[1753986777701,16.86193727,177.07,177.04,0.06]
[1753986777879,9.83851773,177.05,177.04,0.06]
[1753986778078,19.95776981,177.05,177.04,0.06]
[1753986778286,16.86265496,177.05,177.04,0.06]
[1753986779581,21.39810323,177.05,177.04,0.06]
[1753986780291,21.39810323,177.05,177.03,0.2]
[1753986780479,67.6732017,177.04,177.03,0.2]
[1753986782205,73.32164273,177.04,177.03,0.2]
[1753986782510,56.53695876,177.04,177.03,0.2]
[1753986783103,73.32164273,177.04,177.03,0.2]
[1753986783882,73.32164273,177.04,177.02,0.06]
[1753986783883,16.78468397,177.03,177.02,0.06]
[1753986784088,27.99929671,177.03,177.02,0.06]
[1753986784308,33.6480568,177.03,177.02,0.06]
[1753986786708,73.76995704,177.03,176.97,0.06]
[1753986786884,9.83851773,176.98,176.97,0.06]
[1753986787704,0.70625459,176.99,176.97,0.06]
[1753986788009,15.4888737,176.98,176.97,0.06]
[1753986788793,16.1488737,176.98,176.97,0.06]
[1753986789510,5.65035597,176.98,176.97,0.06]
[1753986789715,15.4888737,176.98,176.97,0.06]
[1753986790893,15.4888737,176.98,176.97,0.74]
[1753986791091,6.35638205,176.99,176.97,0.74]
[1753986791388,9.83851773,176.98,176.97,0.74]
[1753986791589,9.83851773,176.98,176.97,0.06]
[1753986792612,15.4888737,176.98,176.97,0.06]
[1753986792911,16.1488737,176.98,176.97,0.06]
[1753986793515,74.01985216,176.98,176.97,0.06]
[1753986794112,74.01985216,176.98,176.96,0.06]
[1753986794113,26.6232017,176.97,176.96,0.06]
[1753986794415,27.2832017,176.97,176.96,0.06]
[1753986795197,32.93387695,176.97,176.96,0.06]
[1753986795817,42.78468397,176.94,176.93,0.06]
[1753986796117,93.0032017,176.94,176.93,0.06]
[1753986796418,93.6632017,176.94,176.93,0.06]
[1753986797200,99.31483502,176.94,176.93,0.06]
[1753986797809,99.31483502,176.94,176.93,0.74]
[1753986797810,9.83851773,176.94,176.93,0.74]
[1753986798015,5.65139325,176.95,176.93,0.74]
[1753986798016,10.54493197,176.95,176.93,0.74]
[1753986798511,10.54493197,176.95,176.93,0.06]
[1753986798714,9.83851773,176.94,176.93,0.06]
[1753986799796,15.49015105,176.94,176.93,0.06]
[1753986800227,16.15015105,176.94,176.93,0.06]
[1753986800529,16.19660521,176.94,176.93,0.06]
[1753986800896,9.83851773,176.95,176.93,0.74]
[1753986801217,6.35654541,176.99,176.94,9.83851773]
[1753986801401,16.19506314,176.99,176.94,9.83851773]
[1753986801599,16.1944758,177.0,176.96,9.83851773]
[1753986801799,16.1944758,177.0,176.97,0.68]
[1753986802019,9.83851773,176.99,176.98,0.68]
[1753986802208,9.83851773,176.99,176.97,0.68]
[1753986803113,15.48860476,176.99,176.97,0.68]
[1753986803426,16.19485935,176.99,176.97,0.68]
[1753986803918,15.48860476,176.99,176.98,0.68]
[1753986804496,15.48860476,176.99,176.96,0.68]
[1753986804713,9.83851773,176.99,176.97,0.68]
[1753986804931,9.83851773,176.99,176.98,0.68]
[1753986805223,10.54461274,177.03,176.98,16.16886981]
[1753986805435,10.54461274,177.03,176.99,0.68]
[1753986805601,9.83851773,177.02,176.99,0.68]
[1753986805927,0.70617479,177.01,176.99,0.68]
[1753986807424,9.83851773,177.0,176.96,0.68]
[1753986807920,9.83851773,177.0,176.97,0.68]
[1753986808101,6.35567628,177.01,176.97,0.68]
[1753986808303,16.19419401,177.01,176.97,0.68]
[1753986808721,9.83851773,177.0,176.97,0.68]
[1753986808919,9.83851773,176.99,176.95,26.68]
[1753986809128,11.20473241,177.0,176.96,0.68]
[1753986809508,10.54473241,177.0,176.96,0.68]
[1753986810207,16.19462652,177.0,176.96,0.68]
[1753986810403,9.83851773,177.01,176.97,10.51851773]
[1753986810616,10.54465263,177.02,176.98,0.68]
[1753986810923,9.83851773,177.01,176.96,10.51851773]
[1753986811128,9.83851773,177.01,176.96,9.83851773]
[1753986811304,9.83851773,177.01,176.97,0.68]
[1753986811505,16.19387129,177.02,176.98,0.68]
[1753986811842,9.83851773,177.03,176.99,0.68]
[1753986812126,0.7061349,177.02,176.99,0.68]
[1753986813405,6.35529269,177.02,176.99,0.68]
[1753986813606,10.49851773,177.01,176.96,0.68]
[1753986813908,10.54465263,177.02,176.97,10.51851773]
[1753986814118,16.19376034,177.02,176.98,0.66]
[1753986814309,0.70609501,177.03,176.99,10.49851773]
[1753986814521,10.54457285,177.04,177.0,9.83851773]
[1753986814707,10.54457285,177.04,177.01,0.66]
[1753986815324,16.19305613,177.04,177.01,0.66]
[1753986815813,10.54457285,177.04,177.01,0.66]
[1753986816011,16.19308403,177.04,177.01,0.66]
[1753986816404,16.91308403,177.04,176.99,10.49851773]
[1753986816828,10.55851773,177.03,176.97,5.65043543]
[1753986817005,11.26461274,177.03,176.98,10.49851773]
[1753986817208,11.26461274,177.03,176.99,0.66]
[1753986817933,11.26461274,177.03,176.99,10.49851773]
[1753986818130,9.83851773,177.03,176.99,9.83851773]
[1753986818336,9.83851773,177.03,177.0,0.66]
[1753986818836,6.3545663,177.04,177.0,0.66]
[1753986819142,9.83851773,177.03,176.96,0.28693246]
[1753986819309,9.83851773,176.98,176.94,0.66]
[1753986819812,10.55851773,176.98,176.94,0.66]
[1753986820013,16.20893693,176.98,176.94,0.66]
[1753986820332,16.20893693,176.98,176.95,40.34]
[1753986820712,5.64824096,177.05,176.97,9.83851773]
[1753986821021,9.42071891,177.05,177.01,9.83851773]
[1753986821228,19.97923664,177.05,177.02,40.32]
[1753986821532,15.48675869,177.05,177.02,40.32]
[1753986823129,5.64824096,177.05,177.03,0.66]
[1753986823518,16.91277393,177.05,177.02,40.32]
[1753986823719,16.20675869,177.05,177.02,40.32]
[1753986824233,5.67824096,177.05,177.03,0.66]
[1753986824735,5.67824096,177.05,177.02,40.32]
[1753986824930,16.22277393,177.05,177.02,40.32]
[1753986825137,9.83851773,177.04,176.97,0.28690001]
[1753986825306,5.67824096,177.05,177.01,9.83851773]
[1753986825620,15.51675869,177.05,177.01,0.66]
[1753986825822,16.94277393,177.05,177.01,0.66]
[1753986826033,9.83851773,177.04,177.01,0.66]
[1753986826336,9.83851773,177.04,176.99,9.83851773]
[1753986826337,10.55851773,177.04,177.02,40.32]
[1753986826532,11.26457285,177.04,177.02,40.32]
[1753986828433,5.64876009,177.03,177.02,40.32]
[1753986830533,5.64844103,177.04,177.02,40.32]
[1753986832054,5.64844103,177.04,177.03,0.66]
[1753986832436,5.67812199,177.05,177.02,40.32]
[1753986832849,5.67812199,177.05,177.02,40.98]
[1753986833345,0.03,177.05,177.04,6.03457098]
[1753986833650,0.03,177.05,177.04,6.69457098]
[1753986834733,0.03,177.05,177.01,26.0]
[1753986834932,0.03,177.05,177.04,40.3]
[1753986836444,7.49058622,177.05,176.99,0.66]
[1753986836646,6.75457098,177.04,177.0,40.3]
[1753986836952,0.03,177.05,177.01,0.66]
[1753986837134,6.03457098,177.04,177.02,0.66]
[1753986837334,6.03457098,177.04,177.03,40.3]
[1753986838052,11.68301201,177.04,177.03,40.3]
[1753986838766,12.40301201,177.04,177.03,40.3]
[1753986840185,12.40301201,177.04,176.97,0.66]
[1753986840457,6.03457098,177.0,176.98,40.28]
[1753986840636,1.42609501,177.03,176.98,40.94]
[1753986840950,6.03457098,177.02,176.98,40.94]
[1753986841541,6.03457098,177.01,176.98,40.94]
[1753986842165,6.03457098,176.99,176.98,40.28]
[1753986842374,6.3690792,177.02,176.98,40.28]
[1753986842542,6.3690792,177.02,176.98,40.94]
[1753986842738,6.03457098,177.01,176.99,40.28]
[1753986843747,6.03457098,177.0,176.99,40.28]
[1753986844465,11.68419346,177.01,176.97,0.7]
[1753986844661,11.68419346,177.01,176.99,40.28]
[1753986844847,6.03457098,177.01,176.99,40.28]
[1753986845047,14.15083693,177.05,177.0,0.7]
[1753986845268,6.03457098,177.02,177.0,0.7]
[1753986845481,1.38605512,177.04,177.01,40.28]
[1753986845655,5.6490792,177.02,177.01,40.28]
[1753986846171,6.3290792,177.02,177.01,40.28]
[1753986846373,6.3290792,177.02,176.98,0.7]
[1753986846562,0.68,177.02,177.01,40.28]
[1753986846763,6.03457098,177.02,177.01,40.28]
[1753986847361,6.71457098,177.02,176.98,0.7]
[1753986847547,6.03457098,177.01,176.99,40.28]
[1753986847742,11.68419165,177.01,176.99,40.28]
[1753986848049,12.36419165,177.01,176.99,40.28]
[1753986848368,11.68419165,177.01,176.99,40.28]
[1753986848573,6.03457098,177.0,176.99,40.28]
[1753986848867,11.68419165,177.01,176.99,40.28]
[1753986850078,7.42078566,177.0,176.94,0.06]
[1753986850251,6.03457098,176.95,176.94,0.06]
[1753986850450,6.03457098,176.95,176.94,40.34]
[1753986850774,6.71457098,176.95,176.94,40.34]
[1753986851870,12.36588491,176.95,176.94,40.34]
[1753986852046,12.36588491,176.95,176.94,0.06]
[1753986852450,6.03457098,176.95,176.94,0.06]
[1753986852645,6.03457098,176.96,176.94,0.06]
[1753986852953,6.03457098,176.96,176.94,0.76]
[1753986853152,6.03457098,176.96,176.94,0.06]
[1753986853673,6.03457098,176.95,176.94,0.06]
[1753986854778,6.71457098,176.95,176.94,0.06]
[1753986855154,11.20722834,176.95,176.94,0.06]
[1753986855483,15.4115348,176.95,176.94,0.06]
[1753986855774,9.37696382,176.95,176.94,0.06]
[1753986855963,11.20722834,176.95,176.94,0.06]
[1753986856164,16.85854227,176.95,176.94,0.06]
[1753986857571,7.03772817,176.95,176.94,0.06]
[1753986857760,12.36588491,176.95,176.94,0.06]
[1753986858276,6.03457098,176.96,176.94,0.06]
[1753986858696,0.70625459,176.99,176.95,0.7]
[1753986858980,6.03457098,176.98,176.96,40.28]
[1753986859185,6.03457098,176.97,176.96,40.28]
[1753986859875,6.71457098,176.97,176.96,40.28]
[1753986860055,6.71457098,176.97,176.94,0.06]
[1753986860255,6.71457098,176.97,176.94,40.32]
[1753986860256,6.03457098,176.95,176.94,40.32]
[1753986861280,6.03457098,176.96,176.94,40.32]
[1753986861481,6.03457098,176.97,176.94,41.02]
[1753986861788,6.33014427,176.99,176.94,40.32]
[1753986861981,6.03457098,176.98,176.95,0.7]
[1753986862281,0.7061349,177.02,176.97,6.03457098]
[1753986862586,10.51424503,177.03,176.98,46.99457098]
[1753986862789,6.74066599,177.03,176.99,0.7]
[1753986862973,7.42066599,177.03,176.99,0.7]
[1753986863172,6.03457098,177.03,177.0,0.7]
[1753986863564,6.03457098,177.03,176.99,6.03457098]
[1753986863759,6.7706261,177.04,176.99,6.03457098]
[1753986863966,12.41915287,177.04,177.0,0.7]
[1753986864280,5.67852677,177.04,177.01,0.7]
[1753986864459,5.67852677,177.04,177.02,40.26]
[1753986865885,0.68,177.03,177.02,40.26]
[1753986866084,6.71457098,177.03,177.02,40.26]
[1753986866379,11.71309775,177.04,177.02,40.26]
[1753986866769,5.67852677,177.04,177.02,40.26]
[1753986866974,11.71309775,177.04,177.02,40.26]
[1753986867296,0.03,177.04,177.02,46.29457098]
[1753986867587,0.03,177.04,177.03,0.7]
[1753986867784,0.03,177.04,177.03,6.73457098]
[1753986868475,0.03,177.04,177.03,0.7]
[1753986868673,0.03,177.04,177.02,46.29457098]
[1753986868886,0.03,177.04,177.02,46.99457098]
[1753986869286,6.03457098,177.03,176.99,0.7]
[1753986869484,6.03457098,177.02,177.0,40.24]
[1753986869790,6.32906236,177.03,177.01,40.24]
[1753986869791,11.68363334,177.03,177.01,40.24]
[1753986870694,11.68363334,177.03,177.02,40.24]
[1753986870896,16.16663117,177.03,177.02,40.24]
[1753986871306,5.64906236,177.03,177.02,40.24]
[1753986871596,16.22209916,177.04,177.02,40.24]
[1753986871771,16.22209916,177.04,177.03,40.24]
[1753986871972,16.90209916,177.04,176.99,10.53756881]
[1753986872171,16.90209916,177.04,177.02,9.83756881]
[1753986872172,0.03,177.04,177.02,9.83756881]
[1753986872374,0.03,177.04,177.03,50.77756881]
[1753986873378,0.03,177.04,177.03,56.4263289]
[1753986874499,0.03,177.04,177.03,102.37289396]
[1753986874868,0.03,177.04,177.03,76.37289396]
[1753986881481,0.03,177.04,177.03,42.47298896]
[1753986881780,0.72,177.04,177.03,40.22]
[1753986881973,0.03,177.04,177.01,19.95737665]
[1753986882174,0.03,177.04,177.02,40.22]
[1753986882485,0.03,177.04,177.02,50.05756881]
[1753986883783,0.03,177.04,176.96,50.53756881]
[1753986883784,10.52756881,177.03,176.96,50.53756881]
[1753986883990,9.83756881,177.0,176.97,40.22]
[1753986884385,10.52756881,176.99,176.96,40.7]
[1753986884608,10.52756881,176.99,176.97,40.2]
[1753986885427,9.83756881,177.0,176.97,40.2]
[1753986885585,10.52756881,177.0,176.97,40.2]
[1753986886504,16.17732024,177.0,176.97,40.2]
[1753986886703,10.52756881,177.0,176.97,40.2]
[1753986887515,0.69,177.03,176.97,81.68819137]
[1753986887704,0.03,177.04,177.02,9.83756881]
[1753986887910,0.03,177.04,177.03,50.32426066]
[1753986888105,0.03,177.04,177.03,50.03756881]
[1753986889019,0.03,177.04,177.03,40.2]
[1753986890518,10.55756881,177.04,176.99,9.83756881]
[1753986890814,0.03,177.04,177.01,9.83756881]
[1753986891114,0.03,177.04,177.02,40.2]
[1753986891612,5.67849166,177.04,177.02,40.2]
[1753986891804,0.69,177.03,177.02,40.2]
[1753986892891,16.8825248,177.03,176.96,26.0]
[1753986893090,16.8825248,177.03,176.97,40.2]
[1753986893091,9.83756881,177.0,176.97,40.2]
[1753986893315,9.83756881,177.01,176.97,40.2]
[1753986893491,10.52756881,177.01,176.97,40.2]
[1753986893892,0.72,177.04,177.0,9.83756881]
[1753986894526,0.69,177.03,177.02,40.2]
[1753986894698,10.52756881,177.03,177.02,40.2]
[1753986895205,16.20611491,177.04,177.02,40.2]
[1753986895593,0.69,177.03,177.02,40.2]
[1753986897409,6.33876009,177.03,177.02,40.2]
[1753986898319,5.64876009,177.03,177.02,40.2]
[1753986899027,16.1763289,177.03,177.02,40.2]
[1753986899702,6.33876009,177.03,177.02,40.2]
[1753986899894,16.1763289,177.03,177.02,40.2]
[1753986900517,16.1763289,177.03,176.95,0.69]
[1753986900518,16.88242391,177.03,176.95,0.69]
[1753986900726,9.83756881,176.98,176.96,40.2]
[1753986901038,9.83756881,176.99,176.96,40.2]
[1753986901201,9.83756881,177.01,176.97,0.69]
[1753986901521,1.3961349,177.02,176.97,0.69]
[1753986901522,10.52756881,177.02,176.97,10.52756881]
[1753986901729,147.63,177.04,176.99,9.83756881]
[1753986901730,163.11612525,177.04,176.99,9.83756881]
[1753986901932,15.51612525,177.04,177.0,40.89]
[1753986902304,16.20612525,177.04,177.0,40.89]
[1753986903525,16.20612525,177.04,177.0,50.72756881]
[1753986903732,16.20612525,177.04,177.0,50.03756881]
[1753986904098,16.20612525,177.04,177.03,9.83756881]
[1753986904099,0.03,177.04,177.03,9.83756881]
[1753986904308,0.03,177.04,177.03,50.74756881]
[1753986905710,0.03,177.04,177.01,0.28678782]
[1753986905914,9.86756881,177.04,177.02,40.2]
[1753986906115,10.57756881,177.04,177.02,40.2]
[1753986906830,11.25366382,177.03,177.02,40.18]
[1753986907414,9.86756881,177.04,177.02,40.18]
[1753986907922,15.51616831,177.04,177.02,40.18]
[1753986908129,9.83756881,177.03,177.02,40.18]
[1753986909536,9.86756881,177.04,177.02,40.18]
[1753986909746,0.03,177.04,177.02,40.18]
[1753986909942,0.03,177.04,177.03,10.12426066]
[1753986911518,0.03,177.04,177.03,26.90894463]
[1753986911713,0.03,177.04,177.03,32.55770472]
[1753986912748,0.03,177.05,177.04,26.62225278]
[1753986912918,0.03,177.05,177.04,66.80225278]
[1753986913724,0.03,177.05,177.04,72.45069381]
[1753986914022,0.03,177.05,177.04,32.27069381]
[1753986914222,0.03,177.05,177.04,72.45069381]
[1753986915034,0.03,177.05,177.04,32.27069381]
[1753986915421,0.03,177.05,177.04,72.45069381]
[1753986916325,0.03,177.05,177.04,73.16069381]
[1753986916518,0.03,177.05,177.04,32.98069381]
[1753986916841,0.03,177.05,177.04,73.16069381]
[1753986917539,0.03,177.05,177.04,73.14069381]
[1753986918537,0.03,177.05,177.04,32.98069381]
[1753986918723,0.03,177.05,177.04,73.14069381]
[1753986919122,0.03,177.05,177.04,32.98069381]
[1753986919320,0.03,177.05,177.04,73.14069381]
[1753986920330,0.03,177.05,177.04,98.43069381]
[1753986921545,0.03,177.05,177.04,92.78225278]
[1753986921744,0.03,177.05,177.04,98.43069381]
[1753986923461,0.03,177.05,177.04,73.14069381]
[1753986923955,0.03,177.06,177.04,73.14069381]
[1753986924123,0.03,177.06,177.05,10.12410113]
[1753986924525,0.03,177.06,177.05,0.28653232]
[1753986924753,0.74,177.06,177.05,50.28410113]
[1753986925057,0.74,177.06,177.05,40.44653232]
[1753986925426,0.03,177.06,177.05,46.09465431]
[1753986925745,0.03,177.06,177.05,50.28410113]
[1753986927249,0.03,177.06,177.05,55.93222312]
[1753986927431,0.03,177.06,177.05,55.91222312]
[1753986928737,0.03,177.06,177.05,50.26410113]
[1753986929147,0.74,177.06,177.05,40.42653232]
[1753986929765,0.74,177.06,177.05,0.28653232]
[1753986929938,0.74,177.06,177.05,40.14]
[1753986931344,0.03,177.06,177.05,45.78812199]
[1753986931547,0.03,177.06,177.05,46.17281852]
[1753986932055,0.03,177.06,177.05,40.14]
[1753986932735,0.03,177.06,177.05,52.10747283]
[1753986933248,0.03,177.06,177.05,46.45935084]
[1753986934155,0.03,177.06,177.05,40.42653232]
[1753986934658,0.03,177.06,177.05,52.10747283]
[1753986934861,0.03,177.06,177.05,69.5921568]
[1753986938051,0.03,177.08,177.07,42.78468397]
[1753986938249,0.1,177.12,177.11,42.78468397]
[1753986938459,0.1,177.12,177.11,94.60371106]
[1753986938845,0.1,177.12,177.11,95.58973325]
[1753986940965,0.1,177.12,177.11,99.3748089]
[1753986943659,0.1,177.12,177.11,99.3548089]
[1753986945142,0.1,177.12,177.11,114.4548089]
[1753986945338,0.1,177.12,177.11,114.16878671]
[1753986948779,0.1,177.12,177.11,114.14878671]
[1753986952482,0.1,177.12,177.11,103.63089254]
[1753986952772,0.1,177.12,177.11,114.4348089]
[1753986952956,0.1,177.12,177.11,114.14878671]
[1753986953885,0.03,177.16,177.15,42.78468397]
[1753986954089,0.03,177.16,177.15,92.70257814]
[1753986954389,0.03,177.16,177.15,93.40257814]
[1753986954390,1e-08,177.16,177.15,93.40257814]
[1753986954557,0.03,177.18,177.16,16.78468397]
[1753986954881,0.03,177.18,177.17,50.20347009]
[1753986955069,0.03,177.18,177.17,55.84776652]
[1753986955273,0.03,177.22,177.2,26.0]
[1753986955463,0.03,177.22,177.2,76.20319945]
[1753986957066,0.03,177.22,177.2,81.8465403]
[1753986957767,0.03,177.22,177.2,82.5465403]
[1753986958662,0.03,177.22,177.2,111.96073523]
[1753986958867,0.03,177.22,177.2,111.67542995]
[1753986959971,0.03,177.22,177.21,16.78468397]
[1753986960292,0.03,177.22,177.21,37.40569798]
[1753986960793,0.03,177.22,177.21,43.04872038]
[1753986961270,0.03,177.23,177.21,42.34872038]
[1753986961470,0.03,177.23,177.22,67.38257814]
[1753986962481,0.1,177.3,177.29,26.0]
[1753986962482,0.76,177.3,177.29,26.0]
[1753986962788,0.1,177.3,177.29,98.60764328]
[1753986963003,0.1,177.3,177.29,100.81311041]
[1753986963599,0.1,177.3,177.29,94.80142976]
[1753986965079,0.1,177.3,177.29,100.81311041]
[1753986965494,0.1,177.3,177.29,94.80142976]
[1753986965896,0.1,177.3,177.29,100.81311041]
[1753986966083,0.1,177.3,177.29,101.49311041]
[1753986966282,0.1,177.3,177.29,100.81311041]
[1753986966698,0.1,177.3,177.29,94.80142976]
[1753986968692,0.1,177.3,177.29,109.90142976]
[1753986969593,0.1,177.3,177.29,115.91311041]
[1753986969891,0.1,177.3,177.29,115.62852132]
[1753986970588,0.1,177.3,177.29,109.61684067]
[1753986970806,0.1,177.3,177.29,109.90142976]
[1753986972101,0.1,177.3,177.29,110.58142976]
[1753986972520,0.1,177.3,177.29,101.49311041]
[1753986972692,2.8645063,177.37,177.36,26.0]
[1753986972693,3.5545063,177.37,177.36,26.0]
[1753986973016,3.5545063,177.37,177.36,72.33571321]
[1753986973582,3.5545063,177.37,177.36,77.97396309]
[1753986974406,3.5545063,177.37,177.36,72.33571321]
[1753986975706,3.5545063,177.37,177.36,77.97396309]
[1753986977030,2.8645063,177.37,177.36,77.97396309]
[1753986977213,2.8645063,177.37,177.36,95.43864706]
[1753986978507,2.8645063,177.37,177.36,48.70696641]
[1753986978717,9.56618695,177.37,177.33,16.78468397]
[1753986978889,0.69,177.36,177.32,5.63942064]
[1753986979210,0.69,177.36,177.35,6.01168065]
[1753986979389,0.69,177.36,177.35,45.6585678]
[1753986979585,0.69,177.36,177.35,45.94267984]